Workbook

Sheet Решение уравнений1
A1: Пример решен методом дихотомии, но его можно использовать для проверки всех методов для решения уравнений
A2: Пример № 1. Уточните корни уравнения x^3+x-1=0 на [-10;10] c шагом h=1 и с точностью до 0,001
A3: x | B3: f(x) | C3: f'(x)=3x^2+1 | F3: [0;1] | G3: f'(x)
A4: -10 | B4: =A4^3+A4-1 -> -1011 | F4: 0 | G4: =3*F4^2+1 -> 1
A5: -9 | B5: =A5^3+A5-1 -> -739 | F5: 0.1 | G5: =3*F5^2+1 -> 1.03
A6: -8 | B6: -521 | F6: 0.2 | G6: 1.12
A7: -7 | B7: -351 | F7: 0.3 | G7: 1.27
A8: -6 | B8: -223 | F8: 0.4 | G8: 1.48
A9: -5 | B9: -131 | F9: 0.5 | G9: 1.75
A10: -4 | B10: -69 | F10: 0.6 | G10: 2.08
A11: -3 | B11: -31 | F11: 0.7 | G11: 2.47
A12: -2 | B12: -11 | F12: 0.8 | G12: 2.92
A13: -1 | B13: -3 | F13: 0.9 | G13: 3.43
A14: 0 | B14: -1 | F14: 1 | G14: 4
A15: 1 | B15: 1 | F15: знак сохраняется
A16: 2 | B16: 9 | F16: [0;1] - отрезок изоляции
A17: 3 | B17: 29
A18: 4 | B18: 67
A19: 5 | B19: 129
A20: 6 | B20: 221
A21: 7 | B21: 349
A22: 8 | B22: 519
A23: 9 | B23: 737
A24: 10 | B24: 1009
A25: Подозрительные на отрезки изоляции: [0;1]
A27: Применяем метод дихотомии к отрезку [0;1]
A28: a | B28: b | C28: с | D28: f ( c ) | E28: длина [a;b] | F28: f(a) | G28: f(b)
A29: 0 | B29: 1 | C29: =(A29+B29)/2 -> 0.5 | D29: =C29^3+C29-1 -> -0.375 | E29: =B29-A29 -> 1 | F29: =A29^3+A29-1 -> -1 | G29: =B29^3+B29-1 -> 1 | H29: =IF(E29<0.002,"с - корень") -> FALSE | I29: - так как f(с)<0, а f(b)>0, то в следующей строке b оставляем прежним, а значение a заменяем на c
A30: =C29 -> 0.5 | B30: =B29 -> 1 | C30: 0.75 | D30: 0.171875 | E30: 0.5 | F30: -0.375 | G30: 1 | H30: FALSE | I30: - так как f(с)>0, а f(a)<0, то в следующей строке а оставляем прежним, а значение b заменяем на c
A31: =A30 -> 0.5 | B31: =C30 -> 0.75 | C31: 0.625 | D31: -0.130859375 | E31: 0.25 | F31: -0.375 | G31: 0.171875 | H31: FALSE
A32: =C31 -> 0.625 | B32: =B31 -> 0.75 | C32: 0.6875 | D32: 0.01245117188 | E32: 0.125 | F32: -0.130859375 | G32: 0.171875 | H32: FALSE
A33: =A32 -> 0.625 | B33: =C32 -> 0.6875 | C33: 0.65625 | D33: -0.06112670898 | E33: 0.0625 | F33: -0.130859375 | G33: 0.01245117188 | H33: FALSE
A34: =C33 -> 0.65625 | B34: =B33 -> 0.6875 | C34: 0.671875 | D34: -0.0248298645 | E34: 0.03125 | F34: -0.06112670898 | G34: 0.01245117188 | H34: FALSE
A35: =C34 -> 0.671875 | B35: =B34 -> 0.6875 | C35: 0.6796875 | D35: -0.006313800812 | E35: 0.015625 | F35: -0.0248298645 | G35: 0.01245117188 | H35: FALSE
A36: =C35 -> 0.6796875 | B36: =B35 -> 0.6875 | C36: 0.68359375 | D36: 0.003037393093 | E36: 0.0078125 | F36: -0.006313800812 | G36: 0.01245117188 | H36: FALSE
A37: =A36 -> 0.6796875 | B37: =C36 -> 0.68359375 | C37: 0.681640625 | D37: -0.001646004617 | E37: 0.00390625 | F37: -0.006313800812 | G37: 0.003037393093 | H37: FALSE
A38: =C37 -> 0.681640625 | B38: =B37 -> 0.68359375 | C38: 0.6826171875 | D38: 0.0006937412545 | E38: 0.001953125 | F38: -0.001646004617 | G38: 0.003037393093 | H38: с - корень | I38: - длина отрезка стала меньше 2k=0,002, значит значение, записанное в ячейке, соответствующей С является корнем
C39: корень, и так как точность k=0,001, то результат нужно округлить до 3-х знаков после запятой
A41: Ответ: x=0,683

Sheet Решение уравнений2
A1: Пример решен методом дихотомии, но его можно использовать для проверки всех методов для решения уравнений
A2: Пример № 2. Уточните корни уравнения cos2x-3x^2+1=0 на [-10;10] c шагом h=1 и с точностью до 0,001
A3: x | B3: f(x) | C3: f'(x)=-2sin2x-6x | F3: [-1;0] | G3: f'(x) | I3: [0;1] | J3: f'(x)
A4: -10 | B4: =COS(2*A4)-3*A4^2+1 -> -298.5919179 | F4: -1 | G4: =-2*SIN(2*F4)-6*F4 -> 7.818594854 | I4: 0 | J4: =-2*SIN(2*I4)-6*I4 -> 0
A5: -9 | B5: =COS(2*A5)-3*A5^2+1 -> -241.3396833 | F5: -0.9 | G5: =-2*SIN(2*F5)-6*F5 -> 7.347695262 | I5: 0.1 | J5: =-2*SIN(2*I5)-6*I5 -> -0.9973386616
A6: -8 | B6: -191.9576595 | F6: -0.8 | G6: 6.799147206 | I6: 0.2 | J6: -1.978836685
A7: -7 | B7: -145.8632628 | F7: -0.7 | G7: 6.17089946 | I7: 0.3 | J7: -2.929284947
A8: -6 | B8: -106.156146 | F8: -0.6 | G8: 5.464078172 | I8: 0.4 | J8: -3.834712182
A9: -5 | B9: -74.83907153 | F9: -0.5 | G9: 4.68294197 | I9: 0.5 | J9: -4.68294197
A10: -4 | B10: -47.14550003 | F10: -0.4 | G10: 3.834712182 | I10: 0.6 | J10: -5.464078172
A11: -3 | B11: -25.03982971 | F11: -0.3 | G11: 2.929284947 | I11: 0.7 | J11: -6.17089946
A12: -2 | B12: -11.65364362 | F12: -0.2 | G12: 1.978836685 | I12: 0.8 | J12: -6.799147206
A13: -1 | B13: -2.416146837 | F13: -0.1 | G13: 0.9973386616 | I13: 0.9 | J13: -7.347695262
A14: 0 | B14: 2 | F14: 0 | G14: 0 | I14: 1 | J14: -7.818594854
A15: 1 | B15: -2.416146837 | F15: знак сохраняется | I15: знак сохраняется
A16: 2 | B16: -11.65364362 | F16: [-1;-0,1] - отрезок изоляции | I16: [0,1;1] - отрезок изоляции
A17: 3 | B17: -25.03982971
A18: 4 | B18: -47.14550003
A19: 5 | B19: -74.83907153
A20: 6 | B20: -106.156146
A21: 7 | B21: -145.8632628
A22: 8 | B22: -191.9576595
A23: 9 | B23: -241.3396833
A24: 10 | B24: -298.5919179
A25: Подозрительные на отрезки изоляции: [-1;0], [0;1]
A27: Применяем метод дихотомии к отрезку [-1;-0,1]
A28: a | B28: b | C28: с | D28: f ( c ) | E28: длина [a;b] | F28: f(a) | G28: f(b)
A29: -1 | B29: -0.1 | C29: =(A29+B29)/2 -> -0.55 | D29: =COS(2*C29)-3*C29^2+1 -> 0.5460961214 | E29: =B29-A29 -> 0.9 | F29: =COS(2*A29)-3*A29^2+1 -> -2.416146837 | G29: =COS(2*B29)-3*B29^2+1 -> 1.950066578 | H29: =IF(E29<0.002,"с - корень") -> FALSE | I29: - так как f(с)>0, а f(a)<0, то в следующей строке а оставляем прежним, а значение b заменяем на c
A30: =A29 -> -1 | B30: =C29 -> -0.55 | C30: -0.775 | D30: -0.7810801722 | E30: 0.45 | F30: -2.416146837 | G30: 0.5460961214 | H30: =IF(E30<0.002,"с - корень") -> FALSE | I30: - так как f(с)<0, а f(b)>0, то в следующей строке b оставляем прежним, а значение a заменяем на c
A31: =C30 -> -0.775 | B31: =B30 -> -0.55 | C31: -0.6625 | D31: -0.07338995585 | E31: 0.225 | F31: -0.7810801722 | G31: 0.5460961214 | H31: FALSE
A32: =C31 -> -0.6625 | B32: =B31 -> -0.55 | C32: -0.60625 | D32: 0.248062073 | E32: 0.1125 | F32: -0.07338995585 | G32: 0.5460961214 | H32: FALSE
A33: =A32 -> -0.6625 | B33: =C32 -> -0.60625 | C33: -0.634375 | D33: 0.09017959534 | E33: 0.05625 | F33: -0.07338995585 | G33: 0.248062073 | H33: FALSE
A34: =A33 -> -0.6625 | B34: =C33 -> -0.634375 | C34: -0.6484375 | D34: 0.009095062689 | E34: 0.028125 | F34: -0.07338995585 | G34: 0.09017959534 | H34: FALSE
A35: =A34 -> -0.6625 | B35: =C34 -> -0.6484375 | C35: -0.65546875 | D35: -0.03197372572 | E35: 0.0140625 | F35: -0.07338995585 | G35: 0.009095062689 | H35: FALSE
A36: =C35 -> -0.65546875 | B36: =B35 -> -0.6484375 | C36: -0.651953125 | D36: -0.01139573341 | E36: 0.00703125 | F36: -0.03197372572 | G36: 0.009095062689 | H36: FALSE
A37: =C36 -> -0.651953125 | B37: =B36 -> -0.6484375 | C37: -0.6501953125 | D37: -0.001139414881 | E37: 0.003515625 | F37: -0.01139573341 | G37: 0.009095062689 | H37: FALSE
A38: =C37 -> -0.6501953125 | B38: =B37 -> -0.6484375 | C38: -0.6493164063 | D38: 0.00398055664 | E38: 0.0017578125 | F38: -0.001139414881 | G38: 0.009095062689 | H38: с - корень | I38: - длина отрезка стала меньше 2k=0,002, значит значение, записанное в ячейке, соответствующей С является корнем
C39: корень, и так как точность k=0,001, то результат нужно округлить до 3-х знаков после запятой
A41: Применяем метод дихотомии к отрезку [0,1;1]
A42: a | B42: b | C42: с | D42: f ( c ) | E42: длина [a;b] | F42: f(a) | G42: f(b)
A43: 0.1 | B43: 1 | C43: =(A43+B43)/2 -> 0.55 | D43: =COS(2*C43)-3*C43^2+1 -> 0.5460961214 | E43: =B43-A43 -> 0.9 | F43: =COS(2*A43)-3*A43^2+1 -> 1.950066578 | G43: =COS(2*B43)-3*B43^2+1 -> -2.416146837 | H43: =IF(E43<0.002,"с - корень") -> FALSE
A44: =C43 -> 0.55 | B44: =B43 -> 1 | C44: 0.775 | D44: -0.7810801722 | E44: 0.45 | F44: 0.5460961214 | G44: -2.416146837 | H44: FALSE
A45: =A44 -> 0.55 | B45: =C44 -> 0.775 | C45: 0.6625 | D45: -0.07338995585 | E45: 0.225 | F45: 0.5460961214 | G45: -0.7810801722 | H45: FALSE
A46: =A45 -> 0.55 | B46: =C45 -> 0.6625 | C46: 0.60625 | D46: 0.248062073 | E46: 0.1125 | F46: 0.5460961214 | G46: -0.07338995585 | H46: FALSE
A47: =C46 -> 0.60625 | B47: =B46 -> 0.6625 | C47: 0.634375 | D47: 0.09017959534 | E47: 0.05625 | F47: 0.248062073 | G47: -0.07338995585 | H47: FALSE
A48: =C47 -> 0.634375 | B48: =B47 -> 0.6625 | C48: 0.6484375 | D48: 0.009095062689 | E48: 0.028125 | F48: 0.09017959534 | G48: -0.07338995585 | H48: FALSE
A49: =C48 -> 0.6484375 | B49: =B48 -> 0.6625 | C49: 0.65546875 | D49: -0.03197372572 | E49: 0.0140625 | F49: 0.009095062689 | G49: -0.07338995585 | H49: FALSE
A50: =A49 -> 0.6484375 | B50: =C49 -> 0.65546875 | C50: 0.651953125 | D50: -0.01139573341 | E50: 0.00703125 | F50: 0.009095062689 | G50: -0.03197372572 | H50: FALSE
A51: =A50 -> 0.6484375 | B51: =C50 -> 0.651953125 | C51: 0.6501953125 | D51: -0.001139414881 | E51: 0.003515625 | F51: 0.009095062689 | G51: -0.01139573341 | H51: FALSE
A52: =A51 -> 0.6484375 | B52: =C51 -> 0.6501953125 | C52: 0.6493164063 | D52: 0.00398055664 | E52: 0.0017578125 | F52: 0.009095062689 | G52: -0.001139414881 | H52: с - корень
C53: корень
A55: Ответ: x=-0,649; x=0,649

Sheet Решение уравнений3
A1: Пример решен методом хорд, но его можно использовать для проверки всех методов для решения уравнений
A2: Пример 1. Найти корни уравнения 3x^2-2x-1=0 на [-10;10] с h=1 и точностью k=0,0000001
A3: x | B3: f(x) | C3: f'(x)=6x-2 | H3: [-1;0] | I3: f'(x)
A4: -10 | B4: =3*A4^2-2*A4-1 -> 319 | H4: -1 | I4: =6*H4-2 -> -8
A5: -9 | B5: =3*A5^2-2*A5-1 -> 260 | H5: -0.9 | I5: =6*H5-2 -> -7.4
A6: -8 | B6: 207 | H6: -0.8 | I6: -6.8
A7: -7 | B7: 160 | H7: -0.7 | I7: -6.2
A8: -6 | B8: 119 | H8: -0.6 | I8: -5.6
A9: -5 | B9: 84 | H9: -0.5 | I9: -5
A10: -4 | B10: 55 | H10: -0.4 | I10: -4.4
A11: -3 | B11: 32 | H11: -0.3 | I11: -3.8
A12: -2 | B12: 15 | H12: -0.2 | I12: -3.2
A13: -1 | B13: 4 | H13: -0.1 | I13: -2.6
A14: 0 | B14: -1 | H14: 0 | I14: -2
A15: 1 | B15: 0 | C15: - т.к. в точке х=1 f(x)=0, то x=1 - корень | H15: знак сохраняется
A16: 2 | B16: 7 | H16: [-1;0] - отрезок изоляции
A17: 3 | B17: 20
A18: 4 | B18: 39
A19: 5 | B19: 64
A20: 6 | B20: 95
A21: 7 | B21: 132
A22: 8 | B22: 175
A23: 9 | B23: 224
A24: 10 | B24: =3*A24^2-2*A24-1 -> 279
A25: Подозрительный на отрезок изоляции: [-1;0]
A27: Применяем метод хорд к отрезку [-1;0]
A28: a | B28: b | C28: f(a) | D28: f(b) | E28: x
A29: -1 | B29: 0 | C29: =3*A29^2-2*A29-1 -> 4 | D29: -1 | E29: =A29-(C29*(B29-A29))/(D29-C29) -> -0.2 | F29: - после запятой должно быть знаков больше на 1, чем в точности k
A30: =E29 -> -0.2 | B30: =B29 -> 0 | C30: -0.48 | D30: -1 | E30: =A30-(C30*(B30-A30))/(D30-C30) -> -0.3846153846 | F30: действия продолжаем выполнять до того момента, пока в двух соседних ячеках у x не появятся одинаковые значения
A31: =E30 -> -0.3846153846 | B31: =B30 -> 0 | C31: 0.2130177515 | D31: -1 | E31: -0.3170731707
A32: =E31 -> -0.3170731707 | B32: =B31 -> 0 | C32: -0.06424747174 | D32: -1 | E32: -0.3388429752
A33: =E32 -> -0.3388429752 | B33: =B32 -> 0 | C33: 0.02212963595 | D33: -1 | E33: -0.3315068493
A34: =E33 -> -0.3315068493 | B34: =B33 -> 0 | C34: -0.007295927941 | D34: -1 | E34: -0.3339432754
A35: -0.3339432754 | B35: 0 | C35: 0.00244088431 | D35: -1 | E35: -0.3331301432
A36: -0.3331301432 | B36: 0 | C36: -0.0008126364787 | D36: -1 | E36: -0.3334010771
A37: -0.3334010771 | B37: 0 | C37: 0.0002709889396 | D37: -1 | E37: -0.3333107536
A38: -0.3333107536 | B38: 0 | C38: -9.031740922e-05 | D38: -1 | E38: -0.3333408601
A39: -0.3333408601 | B39: 0 | C39: 3.010716268e-05 | D39: -1 | E39: -0.3333308244
A40: =E39 -> -0.3333308244 | B40: =B39 -> 0 | C40: -1.003556982e-05 | D40: -1 | E40: -0.3333341696
A41: =E40 -> -0.3333341696 | B41: =B40 -> 0 | C41: 3.345206727e-06 | D41: -1 | E41: -0.3333330546
A42: =E41 -> -0.3333330546 | B42: =B41 -> 0 | C42: -1.115067044e-06 | D42: -1 | E42: -0.3333334263
A43: =E42 -> -0.3333334263 | B43: =B42 -> 0 | C43: 3.716892216e-07 | D43: -1 | E43: -0.3333333024
A44: =E43 -> -0.3333333024 | B44: =B43 -> 0 | C44: -1.238963842e-07 | D44: -1 | E44: -0.3333333437
A45: -0.3333333437 | B45: 0 | C45: =3*A45^2-2*A45-1 -> 4.129879727e-08 | D45: -1 | E45: -0.3333333299
A46: -0.3333333299 | B46: 0 | C46: -1.376626546e-08 | D46: -1 | E46: -0.3333333345 | F46: - результат округлям до того количества знаков после запятой, сколько их у точности k
E47: корень
A63: Ответ: x=1, x=-0,3333333

Sheet Решение уравнений4
A1: Пример решен методом хорд, но его можно использовать для проверки всех методов для решения уравнений
A2: Пример 2. Найти корни уравнения (x/2)-(ln(x)/ln(10)) на [1,3;1,4] с h=0,01 и точностью k=0,0000001
A3: x | B3: f(x)
A4: 1.3 | B4: =A4/2-(LN(A4)/LN(10)) -> 0.5360566477
A5: 1.31 | B5: =A5/2-(LN(A5)/LN(10)) -> 0.5377287043
A6: 1.32 | B6: 0.5394260688
A7: 1.33 | B7: 0.541148359
A8: 1.34 | B8: 0.5428952016
A9: 1.35 | B9: 0.5446662315
A10: 1.36 | B10: 0.5464610916
A11: 1.37 | B11: 0.5482794328
A12: 1.38 | B12: 0.5501209136
A13: 1.39 | B13: 0.5519851997
A14: 1.4 | B14: 0.5538719643
A15: На данном промежутке функция не меняем знак, значит на данном отрезке корней нет
A16: Ответ: на [1,3;1,4] корней нет

Sheet Интерполирование
A1: x | B1: y
A2: 0 | B2: 1.2 | D2: y=ax^5+bx^4+cx^3+dx^2+ex+f
A3: 0.2 | B3: 2.4
A4: 0.4 | B4: 3.6
A5: 0.6 | B5: 4.8
A6: 0.8 | B6: 5.9
A7: 1 | B7: 7.1
A9: x^5 | B9: x^4 | C9: x^3 | D9: x^2 | E9: x^1 | F9: x^0 | G9: y
A10: =A2^5 -> 0 | B10: =A2^4 -> 0 | C10: =A2^3 -> 0 | D10: =A2^2 -> 0 | E10: =A2^1 -> 0 | F10: 1 | G10: =B2 -> 1.2
A11: =A3^5 -> 0.00032 | B11: =A3^4 -> 0.0016 | C11: =A3^3 -> 0.008 | D11: =A3^2 -> 0.04 | E11: =A3^1 -> 0.2 | F11: =A3^0 -> 1 | G11: =B3 -> 2.4
A12: =A4^5 -> 0.01024 | B12: =A4^4 -> 0.0256 | C12: =A4^3 -> 0.064 | D12: =A4^2 -> 0.16 | E12: =A4^1 -> 0.4 | F12: =A4^0 -> 1 | G12: =B4 -> 3.6
A13: 0.07776 | B13: 0.1296 | C13: 0.216 | D13: 0.36 | E13: 0.6 | F13: 1 | G13: 4.8
A14: 0.32768 | B14: 0.4096 | C14: 0.512 | D14: 0.64 | E14: 0.8 | F14: 1 | G14: 5.9
A15: 1 | B15: 1 | C15: 1 | D15: 1 | E15: 1 | F15: 1 | G15: 7.1
A17: опр | B17: =MDETERM(A10:F15) -> -1.13246208e-06
A18: мобр
A19: =MINVERSE(A10:F15) -> -26.04166667 | B19: 130.2083333 | C19: -260.4166667 | D19: 260.4166667 | E19: -130.2083333 | F19: 26.04166667
A20: 78.125 | B20: -364.5833333 | C20: 677.0833333 | D20: -625 | E20: 286.4583333 | F20: -52.08333333
A21: -88.54166667 | B21: 369.7916667 | C21: -614.5833333 | D21: 510.4166667 | E21: -213.5416667 | F21: 36.45833333
A22: 46.875 | B22: -160.4166667 | C22: 222.9166667 | D22: -162.5 | E22: 63.54166667 | F22: -10.41666667
A23: -11.41666667 | B23: 25 | C23: -25 | D23: 16.66666667 | E23: -6.25 | F23: 1
A24: 1 | B24: 0 | C24: 0 | D24: 0 | E24: 0 | F24: 0
A26: a= | B26: =MMULT(A19:F24,G10:G15) -> 10.41666667
A27: b= | B27: -23.4375
A28: c= | B28: 17.70833333
A29: d= | B29: -5.3125
A30: e= | B30: 6.525
A31: f= | B31: 1.2
A33: y= 10 5/12x^5-23 7/16x^4+17 17/24x^3-5 5/16x^2+6 21/40x+1 1/5
A35: x | B35: y
A36: 0 | B36: =$B$26*A36^5+$B$27*A36^4+$B$28*A36^3+$B$29*A36^2+$B$30*A36+$B$31 -> 1.2
A37: 0.2 | B37: =$B$26*A37^5+$B$27*A37^4+$B$28*A37^3+$B$29*A37^2+$B$30*A37+$B$31 -> 2.4
A38: 0.4 | B38: 3.6
A39: 0.6 | B39: 4.8
A40: 0.8 | B40: 5.9
A41: 1 | B41: 7.1
A42: 0.1 | B42: 1.81484375

Sheet Формулы прямоугольников
A1: Задание: вычислить интеграл
A2: при n=20 и оценить погрешность
A3: результата
A5: x | B5: y | D5: y' | G5: h | H5: =(H7-H6)/H8 -> 0.05235987756 | I5: - шаг интегрирования (вычисляется по формуле h=(b-a)/n)
A6: 0 | B6: =SIN(2*A6+1) -> 0.8414709848 | C6: =y0 | D6: =ABS((1/(6*$H$5))*(-11*B6+18*B7-9*B8+2*B9)) -> 1.081122204 | G6: a | H6: =0 -> 0 | I6: - нижний предел интегрирования
A7: =A6+$H$5 -> 0.05235987756 | B7: =SIN(2*A7+1) -> 0.8933382884 | C7: =y1 | D7: 0.8993101769 | G7: b | H7: =PI()/3 -> 1.047197551 | I7: - верхний предел интегрирования
A8: 0.1047197551 | B8: 0.9354179908 | C8: =y2 | D8: 0.7076451192 | G8: n | H8: 20 | I8: - количество узлов
A9: 0.1570796327 | B9: 0.967249058 | C9: =y3 | D9: 0.5082269534
A10: 0.2094395102 | B10: 0.988482742 | C10: =y4 | D10: 0.3032405467 | F10: Инструкция по вычислению интеграла методами прямоугольников:
A11: 0.2617993878 | B11: 0.9988864023 | C11: =y5 | D11: 0.09493177319 | F11: 1. В столбце А забиваются все значения аргументов, начиная с a и далее с шагом n растягивается до b
A12: 0.3141592654 | B12: 0.9983460542 | C12: =y6 | D12: 0.1144170927 | F12: 2. В столбце B подставляет значения x в заданную функцию и растягиваем до конца
A13: 0.3665191429 | B13: 0.9868676177 | C13: =y7 | D13: 0.322512381 | F13: 3. В ячейке С36 вычисляем интегралы по левой формуле прямоугольников: h*сумм(y0;yn-1)
A14: 0.4188790205 | B14: 0.9645768531 | C14: =y8 | D14: 0.5270741562 | F14: 4. В ячейке С37 вычисляем интегралы по левой формуле прямоугольников: h*сумм(y1;yn)
A15: 0.471238898 | B15: 0.9317179826 | C15: =y9 | D15: 0.7258611966 | F15: 5. Для того, чтобы посчитать погрешность формул прямоугольников, необходимо воспользоваться специальной формулой:
A16: 0.5235987756 | B16: 0.888651015 | C16: =y10 | D16: 0.9166955498 | F16: 6. Для нахождения максимума модуля первой производной можно воспользоваться формулой для численного
A17: 0.5759586532 | B17: 0.8358478009 | C17: =y11 | D17: 1.097486395 | F17: нахождения производной в точке с четырьмя заданными узлами:
A18: 0.6283185307 | B18: 0.7738868633 | C18: =y12 | D18: 1.266252949 | F18: Но нужно учесть, что, для того чтобы воспользоваться этой формлой, нужно найти три дополнительных значения x и y
A19: 0.6806784083 | B19: 0.7034470594 | C19: =y13 | D19: 1.421146171 | F19: (выделены желтым)
A20: 0.7330382858 | B20: 0.6253001422 | C20: =y14 | D20: 1.560469018 | F20: 7. В ячейке D32 находим максимум из найденных производных
A21: 0.7853981634 | B21: 0.5403023059 | C21: =y15 | D21: 1.682695041 | F21: 8. В ячейке С35 считаем погрешность
A22: 0.837758041 | B22: 0.4493848044 | C22: =y16 | D22: 1.786485104
A23: 0.8901179185 | B23: 0.3535437489 | C23: =y17 | D23: 1.870702062
A24: 0.9424777961 | B24: 0.2538291942 | C24: =y18 | D24: 1.934423217
A25: 0.9948376736 | B25: 0.1513336337 | C25: =y19 | D25: 1.976950427
A26: 1.047197551 | B26: 0.0471800302 | C26: =y20 | D26: 1.997817754
A27: 1.099557429 | B27: -0.05749048755
A28: 1.151917306 | B28: -0.1615311275
A29: 1.204277184 | B29: -0.2638019986
C31: max(f'(x))= | D31: =MAX(D6:D26) -> 1.997817754
A32: левая формула: | C32: =$H$5*SUM(B6:B25) -> 0.7896854185
A33: правая формула: | C33: =$H$5*SUM(B7:B26) -> 0.7480964414
A34: погрешность: | C34: =(((H7-H6)^2)/(2*H8))*D31 -> 0.05477130805

Sheet Формула трапеций
A1: Задание: Вычислите определенный интеграл
A2: методом трапеций
A3: и определите погрешность результата:
A4: x | B4: y | D4: y''
A5: =G5 -> 0 | B5: =SIN(2*A5+1) -> 0.8414709848 | C5: =y0 | D5: =ABS((1/$G$8^2)*(2*B5-5*B6+4*B7-B8)) -> 3.51653036 | F5: a | G5: 0 | H5: - нижний предел интегрирования
A6: =A5+$G$8 -> 0.1047197551 | B6: =SIN(2*A6+1) -> 0.9354179908 | C6: =y1 | D6: 3.900189608 | F6: b | G6: =PI()/3 -> 1.047197551 | H6: - верхний предел интегрирования
A7: 0.2094395102 | B7: 0.988482742 | C7: =y2 | D7: 4.113391856 | F7: n | G7: 10 | H7: - количество узлов
A8: 0.3141592654 | B8: 0.9983460542 | C8: =y3 | D8: 4.146819141 | F8: h | G8: =(G6-G5)/G7 -> 0.1047197551 | H8: - шаг интегрирования (вычисляется по формуле h=(b-a)/n)
A9: 0.4188790205 | B9: 0.9645768531 | C9: =y4 | D9: 3.999010531
A10: 0.5235987756 | B10: 0.888651015 | C10: =y5 | D10: 3.676425971 | F10: Инструкция по вычислению интеграла методами прямоугольников:
A11: 0.6283185307 | B11: 0.7738868633 | C11: =y6 | D11: 3.193163955 | F11: 1. В столбце А забиваются все значения аргументов, начиная с a и далее с шагом n растягивается до b
A12: 0.7330382858 | B12: 0.6253001422 | C12: =y7 | D12: 2.570345352 | F12: 2. В столбце B подставляем значения x в заданную функцию и растягиваем до конца
A13: 0.837758041 | B13: 0.4493848044 | C13: =y8 | D13: 1.835190323 | F13: 3. В ячейке С21 вычисляем интегралы по формуле трапеций (b-a)/2n*(y0+yn+2*сумм(y1;yn-1))
A14: 0.9424777961 | B14: 0.2538291942 | C14: =y9 | D14: 1.01982867 | F14: 4. Для того, чтобы посчитать погрешность формулы трапеции, необходимо воспользоваться специальной формулой:
A15: 1.047197551 | B15: 0.0471800302 | C15: =y10 | D15: 0.1598956113 | F15: 5. Для нахождения максимума модуля первой производной можно воспользоваться формулой для численного
A16: 1.151917306 | B16: -0.1615311275 | F16: нахождения второй производной в точке с четырьмя заданными узлами:
A17: 1.256637061 | B17: -0.3631825998 | F17: Но нужно учесть, что, для того чтобы воспользоваться этой формлой, нужно найти три дополнительных значения x и y
A18: 1.361356817 | B18: -0.5489612498 | F18: (выделены желтым)
F19: 6. В ячейке D20 находим максимум из найденных производных
C20: max(f''(x))= | D20: =MAX(D5:D15) -> 4.146819141 | F20: 7. В ячейке С22 считаем погрешность
A21: формула трапеций | C21: =(G6-G5)/(2*G7)*(B5+B15+2*SUM(B6:B14)) -> 0.7667791131
A22: погрешность: | C22: =(((G6-G5)^3)/(12*G7^2))*D20 -> 0.003968438939

Sheet Формула парабол
A1: Задание: Вычислите определенный интеграл
A2: методом парабол
A3: и определите погрешность результата:
A5: a= | B5: 0 | F5: a= | G5: 0
A6: b= | B6: =PI()/3 -> 1.047197551 | F6: b= | G6: =PI()/3 -> 1.047197551
A7: n= | B7: 10 | C7: m= | D7: =B7/2 -> 5 | F7: n= | G7: 20 | H7: m= | I7: =G7/2 -> 10
A8: h= | B8: =(B6-B5)/B7 -> 0.1047197551 | F8: h= | G8: =(G6-G5)/G7 -> 0.05235987756
A10: x | B10: y | F10: x | G10: y | K10: Метод решения интегралов методом параболпохож на предыдущие методы.
A11: =B5 -> 0 | B11: =SIN(2*A11+1) -> 0.8414709848 | C11: y0 | F11: =G5 -> 0 | G11: =SIN(2*F11+1) -> 0.8414709848 | H11: y0 | K11: Но есть несколько особенностей:
A12: =A11+$B$8 -> 0.1047197551 | B12: =SIN(2*A12+1) -> 0.9354179908 | C12: y1 | F12: =F11+$G$8 -> 0.05235987756 | G12: =SIN(2*F12+1) -> 0.8933382884 | H12: y1 | K12: 1. Формула применяется только для четного числа шагов
A13: =A12+$B$8 -> 0.2094395102 | B13: 0.988482742 | C13: y2 | F13: =F12+$G$8 -> 0.1047197551 | G13: 0.9354179908 | H13: y2 | K13: 2. Нужно посчитать не только шаг (h), но и число m=n/2 (число разбиений)
A14: 0.3141592654 | B14: 0.9983460542 | C14: y3 | F14: 0.1570796327 | G14: 0.967249058 | H14: y3 | K14: 2. Формула выглядит так: (б-a)/6m*(y0+yn)+2*(y2+y4+…+yn-2)+4*(y1+y3+…+yn-1)
A15: 0.4188790205 | B15: 0.9645768531 | C15: y4 | F15: 0.2094395102 | G15: 0.988482742 | H15: y4
A16: 0.5235987756 | B16: 0.888651015 | C16: y5 | F16: 0.2617993878 | G16: 0.9988864023 | H16: y5 | K16: Погрешность для данного метода вычисляется без использования производной:
A17: 0.6283185307 | B17: 0.7738868633 | C17: y6 | F17: 0.3141592654 | G17: 0.9983460542 | H17: y6 | K17: 1. нужно посчитать интегралы с шагом n и 2n (например n=10 и n=20)
A18: 0.7330382858 | B18: 0.6253001422 | C18: y7 | F18: 0.3665191429 | G18: 0.9868676177 | H18: y7 | K18: 2. Вычесть одно значение из другого и потом поделить разность на 15
A19: 0.837758041 | B19: 0.4493848044 | C19: y8 | F19: 0.4188790205 | G19: 0.9645768531 | H19: y8 | K19: 3. Взять модуль получившегося значения
A20: 0.9424777961 | B20: 0.2538291942 | C20: y9 | F20: 0.471238898 | G20: 0.9317179826 | H20: y9
A21: =A20+$B$8 -> 1.047197551 | B21: 0.0471800302 | C21: y10 | F21: 0.5235987756 | G21: 0.888651015 | H21: y10
F22: 0.5759586532 | G22: 0.8358478009 | H22: y11
A23: Интеграл: | B23: =(B6-B5)/(6*D7)*((B11+B21)+2*(B13+B15+B17+B19)+4*(B12+B14+B16+B18+B20)) -> 0.7696026239 | F23: 0.6283185307 | G23: 0.7738868633 | H23: y12
F24: 0.6806784083 | G24: 0.7034470594 | H24: y13
F25: =F24+$G$8 -> 0.7330382858 | G25: 0.6253001422 | H25: y14
F26: 0.7853981634 | G26: 0.5403023059 | H26: y15
F27: 0.837758041 | G27: 0.4493848044 | H27: y16
F28: 0.8901179185 | G28: 0.3535437489 | H28: y17
F29: 0.9424777961 | G29: 0.2538291942 | H29: y18
F30: 0.9948376736 | G30: 0.1513336337 | H30: y19
F31: 1.047197551 | G31: 0.0471800302 | H31: y20
F33: Интеграл: | G33: =(G6-G5)/(6*I7)*((G11+G31)+2*(G13+G15+G17+G19+G21+G23+G25+G27+G29)+4*(G12+G14+G16+G18+G20+G22+G24+G26+G28+G30)) -> 0.7695948689
A34: Погрешность: | C34: =ABS(G33-B23)/15 -> 5.169990066e-07

Sheet Методы Эйлера
A1: a | B1: 0 | C1: начало отрезка | I1: a | J1: 0 | K1: начало отрезка
A2: b | B2: 4 | C2: конец отрезка | I2: b | J2: 4 | K2: конец отрезка
A3: x0 | B3: 0 | C3: нулевое x | I3: x0 | J3: 0 | K3: нулевое x
A4: y0 | B4: 1 | C4: нулевое y | I4: y0 | J4: 1 | K4: нулевое y
A5: h | B5: 0.2 | C5: шаг разбиения отрезка | I5: h | J5: 0.2 | K5: шаг разбиения отрезка
A6: f(x,y)=корень(x)*y | B6: функция | I6: f(x,y)=корень(x)*y | J6: функция
A7: i | B7: =(B2-B1)/B5 -> 20 | I7: i | J7: =(J2-J1)/J5 -> 20
I8: Уточненный метод Эйлера
A9: Метод Эйлера | I9: i | J9: x | K9: y | L9: f(x,y) | M9: hf(x,y)
A10: i | B10: x | C10: y | D10: f(x,y) | E10: hf(x,y) | I10: 0 | J10: 0 | K10: 1 | L10: =SQRT(J10)*K10 -> 0 | M10: =$B$5*L10 -> 0
A11: 0 | B11: 0 | C11: 1 | D11: =SQRT(B11)*C11 -> 0 | E11: =$B$5*D11 -> 0 | I11: 1 | J11: =J10+$J$5 -> 0.2 | K11: =K10+M10 -> 1 | L11: =SQRT(J11)*K11 -> 0.4472135955 | M11: =$B$5*L11 -> 0.0894427191
A12: 1 | B12: =B11+$B$5 -> 0.2 | C12: =C11+E11 -> 1 | D12: =SQRT(B12)*C12 -> 0.4472135955 | E12: =$B$5*D12 -> 0.0894427191 | I12: 2 | J12: =J11+$J$5 -> 0.4 | K12: =K10+2*M11 -> 1.178885438 | L12: 0.745592617 | M12: =$B$5*L12 -> 0.1491185234
A13: 2 | B13: =B12+$B$5 -> 0.4 | C13: =C12+E12 -> 1.089442719 | D13: =SQRT(B13)*C13 -> 0.6890240745 | E13: =$B$5*D13 -> 0.1378048149 | I13: 3 | J13: 0.6 | K13: =K11+2*M12 -> 1.298237047 | L13: 1.005610092 | M13: =$B$5*L13 -> 0.2011220185
A14: 3 | B14: 0.6 | C14: 1.227247534 | D14: 0.9506218522 | E14: 0.1901243704 | I14: 4 | J14: 0.8 | K14: 1.581129475 | L14: 1.414205195 | M14: 0.282841039
A15: 4 | B15: 0.8 | C15: 1.417371904 | D15: 1.267735971 | E15: 0.2535471942 | I15: 5 | J15: 1 | K15: 1.863919125 | L15: 1.863919125 | M15: 0.372783825
A16: 5 | B16: 1 | C16: 1.670919099 | D16: 1.670919099 | E16: 0.3341838197 | I16: 6 | J16: 1.2 | K16: 2.326697125 | L16: 2.548769 | M16: 0.5097538
A17: 6 | B17: 1.2 | C17: 2.005102918 | D17: 2.196480197 | E17: 0.4392960394 | I17: 7 | J17: 1.4 | K17: 2.883426725 | L17: 3.41171651 | M17: 0.6823433021
A18: 7 | B18: 1.4 | C18: 2.444398958 | D18: 2.892251851 | E18: 0.5784503702 | I18: 8 | J18: 1.6 | K18: 3.691383729 | L18: 4.669272121 | M18: 0.9338544242
A19: 8 | B19: 1.6 | C19: 3.022849328 | D19: 3.82363556 | E19: 0.764727112 | I19: 9 | J19: 1.8 | K19: 4.751135573 | L19: 6.374317267 | M19: 1.274863453
A20: 9 | B20: 1.8 | C20: 3.78757644 | D20: 5.081567034 | E20: 1.016313407 | I20: 10 | J20: 2 | K20: 6.241110636 | L20: 8.826263306 | M20: 1.765252661
A21: 10 | B21: 2 | C21: 4.803889847 | D21: 6.793726174 | E21: 1.358745235 | I21: 11 | J21: 2.2 | K21: 8.281640895 | L21: 12.28365854 | M21: 2.456731707
A22: 11 | B22: 2.2 | C22: 6.162635082 | D22: 9.140664994 | E22: 1.828132999 | I22: 12 | J22: 2.4 | K22: 11.15457405 | L22: 17.28059181 | M22: 3.456118362
A23: 12 | B23: 2.4 | C23: 7.99076808 | D23: 12.37924468 | E23: 2.475848936 | I23: 13 | J23: 2.6 | K23: 15.19387762 | L23: 24.49939151 | M23: 4.899878303
A24: 13 | B24: 2.6 | C24: 10.46661702 | D24: 16.87691283 | E24: 3.375382565 | I24: 14 | J24: 2.8 | K24: 20.95433066 | L24: 35.06330169 | M24: 7.012660337
A25: 14 | B25: 2.8 | C25: 13.84199958 | D25: 23.16209547 | E25: 4.632419095 | I25: 15 | J25: 3 | K25: 29.21919829 | L25: 50.609136 | M25: 10.1218272
A26: 15 | B26: 3 | C26: 18.47441868 | D26: 31.99863179 | E26: 6.399726358 | I26: 16 | J26: 3.2 | K26: 41.19798506 | L26: 73.6971961 | M26: 14.73943922
A27: 16 | B27: 3.2 | C27: 24.87414503 | D27: 44.49622334 | E27: 8.899244669 | I27: 17 | J27: 3.4 | K27: 58.69807673 | L27: 108.2339056 | M27: 21.64678112
A28: 17 | B28: 3.4 | C28: 33.7733897 | D28: 62.27505357 | E28: 12.45501071 | I28: 18 | J28: 3.6 | K28: 84.4915473 | L28: 160.3114395 | M28: 32.0622879
A29: 18 | B29: 3.6 | C29: 46.22840042 | D29: 87.71222274 | E29: 17.54244455 | I29: 19 | J29: 3.8 | K29: 122.8226525 | L29: 239.425427 | M29: 47.8850854
A30: 19 | B30: 3.8 | C30: 63.77084496 | D30: 124.3122622 | E30: 24.86245244 | I30: 20 | J30: 4 | K30: 180.2617181 | L30: 360.5234362 | M30: 72.10468724
A31: 20 | B31: 4 | C31: 88.63329741 | D31: 177.2665948 | E31: 35.45331896

Sheet Методы Рунге-Кутты
A1: y'=корень(x)*y
A2: f(x,y)=корень(x)*y
A3: a | B3: 0
A4: b | B4: 4
A5: x0 | B5: 0
A6: y0 | B6: 1
A7: h | B7: 0.2
A8: i | B8: =(B4-B3)/B7 -> 20
E9: Первая совокупность формул | J9: x | K9: y | N9: x | O9: y
E10: i | F10: x | G10: y | H10: f(x,y) | I10: r1=hf(x,y) | J10: x+h/2 | K10: y+r1/2 | L10: f(x+h/2;y+r1/2) | M10: r2=h*f(x+h/2;y+r1/2) | N10: x+h | O10: y-r1+2*r2 | P10: f(x+h;y-r1+2r2) | Q10: r3=h*f(x+h;y-r1+2r2)
E11: 0 | F11: 0 | G11: 1 | H11: =SQRT(F11)*G11 -> 0 | I11: =$B$7*H11 -> 0 | J11: =F11+$B$7/2 -> 0.1 | K11: =G11+I11/2 -> 1 | L11: =SQRT(J11)*K11 -> 0.316227766 | M11: =$B$7*L11 -> 0.0632455532 | N11: =F11+$B$7 -> 0.2 | O11: =G11-I11+2*M11 -> 1.126491106 | P11: =SQRT(N11)*O11 -> 0.503782138 | Q11: =P11*$B$7 -> 0.1007564276
E12: 1 | F12: =F11+$B$7 -> 0.2 | G12: =G11+(1/6)*(I11+4*M11+Q11) -> 1.05895644 | H12: =SQRT(F12)*G12 -> 0.473579717 | I12: =$B$7*H12 -> 0.09471594341 | J12: =F12+$B$7/2 -> 0.3 | K12: =G12+I12/2 -> 1.106314412 | L12: =SQRT(J12)*K12 -> 0.605953359 | M12: =$B$7*L12 -> 0.1211906718 | N12: =F12+$B$7 -> 0.4 | O12: =G12-I12+2*M12 -> 1.20662184 | P12: =SQRT(N12)*O12 -> 0.763134658 | Q12: =P12*$B$7 -> 0.1526269316
E13: 2 | F13: =F12+$B$7 -> 0.4 | G13: =G12+(1/6)*(I12+4*M12+Q12) -> 1.180974034 | H13: =SQRT(F13)*G13 -> 0.7469135608 | I13: =$B$7*H13 -> 0.1493827122 | J13: =F13+$B$7/2 -> 0.5 | K13: =G13+I13/2 -> 1.25566539 | L13: =SQRT(J13)*K13 -> 0.8878895121 | M13: =$B$7*L13 -> 0.1775779024 | N13: =F13+$B$7 -> 0.6 | O13: =G13-I13+2*M13 -> 1.386747126 | P13: =SQRT(N13)*O13 -> 1.074169705 | Q13: =P13*$B$7 -> 0.214833941
E14: 3 | F14: 0.6 | G14: 1.360062078 | H14: 1.053499555 | I14: 0.2106999111 | J14: 0.7 | K14: 1.465412033 | L14: 1.226051671 | M14: 0.2452103341 | N14: 0.8 | O14: 1.639782835 | P14: 1.466666355 | Q14: 0.2933332709
E15: 4 | F15: 0.8 | G15: 1.607541164 | H15: 1.437828528 | I15: 0.2875657055 | J15: 0.9 | K15: 1.751324017 | L15: 1.661451844 | M15: 0.3322903688 | N15: 1 | O15: 1.984556196 | P15: 1.984556196 | Q15: 0.3969112392
E16: 5 | F16: 1 | G16: 1.943147567 | H16: 1.943147567 | I16: 0.3886295135 | J16: 1.1 | K16: 2.137462324 | L16: 2.241789398 | M16: 0.4483578796 | N16: 1.2 | O16: 2.451233813 | P16: 2.685192106 | Q16: 0.5370384213
E17: 6 | F17: 1.2 | G17: 2.39633081 | H17: 2.625048879 | I17: 0.5250097759 | J17: 1.3 | K17: 2.658835697 | L17: 3.031539122 | M17: 0.6063078243 | N17: 1.4 | O17: 3.083936682 | P17: 3.648963092 | Q17: 0.7297926183
E18: 7 | F18: 1.4 | G18: 3.009669758 | H18: 3.561089282 | I18: 0.7122178564 | J18: 1.5 | K18: 3.365778686 | L18: 4.122220184 | M18: 0.8244440369 | N18: 1.6 | O18: 3.946339975 | P18: 4.991769098 | Q18: 0.9983538195
E19: 8 | F19: 1.6 | G19: 3.844394395 | H19: 4.862817005 | I19: 0.9725634011 | J19: 1.7 | K19: 4.330676096 | L19: 5.646510804 | M19: 1.129302161 | N19: 1.8 | O19: 5.130435316 | P19: 6.883201272 | Q19: 1.376640254
E20: 9 | F20: 1.8 | G20: 4.988796445 | H20: 6.693172786 | I20: 1.338634557 | J20: 1.9 | K20: 5.658113724 | L20: 7.799171541 | M20: 1.559834308 | N20: 2 | O20: 6.769830504 | P20: 9.573986114 | Q20: 1.914797223
E21: 10 | F21: 2 | G21: 6.570924614 | H21: 9.292690706 | I21: 1.858538141 | J21: 2.1 | K21: 7.500193685 | L21: 10.86881324 | M21: 2.173762647 | N21: 2.2 | O21: 9.059911767 | P21: 13.43802079 | Q21: 2.687604158
E22: 11 | F22: 2.2 | G22: 8.777790095 | H22: 13.01956672 | I22: 2.603913345 | J22: 2.3 | K22: 10.07974677 | L22: 15.28669285 | M22: 3.05733857 | N22: 2.4 | O22: 12.28855389 | P22: 19.03734583 | Q22: 3.807469165
E23: 12 | F23: 2.4 | G23: 11.88457956 | H23: 18.41151149 | I23: 3.682302297 | J23: 2.5 | K23: 13.72573071 | L23: 21.70228579 | M23: 4.340457159 | N23: 2.6 | O23: 16.88319158 | P23: 27.22332843 | Q23: 5.444665686
E24: 13 | F24: 2.6 | G24: 16.299379 | H24: 26.28195892 | I24: 5.256391784 | J24: 2.7 | K24: 18.92757489 | L24: 31.10117918 | M24: 6.220235835 | N24: 2.8 | O24: 23.48345888 | P24: 39.29534266 | Q24: 7.859068533
E25: 14 | F25: 2.8 | G25: 22.63211294 | H25: 37.87076843 | I25: 7.574153685 | J25: 2.9 | K25: 26.41918978 | L25: 44.99025903 | M25: 8.998051805 | N25: 3 | O25: 33.05406287 | P25: 57.25131628 | Q25: 11.45026326
E26: 15 | F26: 3 | G26: 31.8015503 | H26: 55.08190088 | I26: 11.01638018 | J26: 3.1 | K26: 37.30974039 | L26: 65.69057662 | M26: 13.13811532 | N26: 3.2 | O26: 47.06140077 | P26: 84.18599299 | Q26: 16.8371986
E27: 16 | F27: 3.2 | G27: 45.20255698 | H27: 80.86079213 | I27: 16.17215843 | J27: 3.3 | K27: 53.28863619 | L27: 96.80361494 | M27: 19.36072299 | N27: 3.4 | O27: 67.75184453 | P27: 124.9282285 | Q27: 24.98564571
E28: 17 | F28: 3.4 | G28: 64.96933966 | H28: 119.7975431 | I28: 23.95950861 | J28: 3.5 | K28: 76.94909397 | L28: 143.9585729 | M28: 28.79171458 | N28: 3.6 | O28: 98.59326021 | P28: 187.0675585 | Q28: 37.41351171
E29: 18 | F29: 3.6 | G29: 94.39265277 | H29: 179.0974663 | I29: 35.81949326 | J29: 3.7 | K29: 112.3023994 | L29: 216.0179783 | M29: 43.20359567 | N29: 3.8 | O29: 144.9803508 | P29: 282.6187328 | Q29: 56.52374655
E30: 19 | F30: 3.8 | G30: 138.5855898 | H30: 270.1530487 | I30: 54.03060974 | J30: 3.9 | K30: 165.6008947 | L30: 327.0355633 | M30: 65.40711267 | N30: 4 | O30: 215.3692054 | P30: 430.7384109 | Q30: 86.14768218
E31: 20 | F31: 4 | G31: 205.5533803 | H31: 411.1067606 | I31: 82.22135211 | J31: 4.1 | K31: 246.6640563 | L31: 499.4566472 | M31: 99.89132944 | N31: 4.2 | O31: 323.114687 | P31: 662.188058 | Q31: 132.4376116
A43: y'=корень(x)*y
A44: f(x,y)=корень(x)*y
A45: a | B45: 0
A46: b | B46: 4
A47: x0 | B47: 0
A48: y0 | B48: 1
A49: h | B49: 0.2
A50: i | B50: =(B46-B45)/B49 -> 20
A52: Вторая совокупность формул | F52: x | G52: y | J52: x | K52: y
A53: i | B53: x | C53: y | D53: f(x,y) | E53: r1=hf(x,y) | F53: x+h/2 | G53: y+r1/2 | H53: f(x+h/2;y+r1/2) | I53: r2=hf(x+h/2;y+r1/2) | J53: x+h/2 | K53: y+r2/2 | L53: f(x+h/2;y+r2/2) | M53: r3=hf(x+h/2;y+r2/2) | N53: x+h | O53: y+r3 | P53: f(x+h;y+r3) | Q53: r4=hf(x+h;y+r3)
A54: 0 | B54: 0 | C54: 1 | D54: =SQRT(B54)*C54 -> 0 | E54: =$B$49*D54 -> 0 | F54: =B54+$B$49/2 -> 0.1 | G54: =C54+E54/2 -> 1 | H54: =SQRT(F54)*G54 -> 0.316227766 | I54: =$B$49*H54 -> 0.0632455532 | J54: =B54+$B$49/2 -> 0.1 | K54: =C54+I54/2 -> 1.031622777 | L54: =SQRT(J54)*K54 -> 0.326227766 | M54: =$B$49*L54 -> 0.0652455532 | N54: =B54+$B$49 -> 0.2 | O54: =C54+M54 -> 1.065245553 | P54: =SQRT(N54)*O54 -> 0.4763922939 | Q54: =P54*$B$49 -> 0.09527845879
A55: 1 | B55: =B54+$B$7 -> 0.2 | C55: =C54+(1/6)*(E54+2*I54+2*M54+Q54) -> 1.058710112 | D55: =SQRT(B55)*C55 -> 0.4734695557 | E55: =$B$49*D55 -> 0.09469391115 | F55: =B55+$B$49/2 -> 0.3 | G55: =C55+E55/2 -> 1.106057068 | H55: =SQRT(F55)*G55 -> 0.6058124058 | I55: =$B$49*H55 -> 0.1211624812 | J55: =B55+$B$49/2 -> 0.3 | K55: =C55+I55/2 -> 1.119291353 | L55: =SQRT(J55)*K55 -> 0.6130611222 | M55: =$B$49*L55 -> 0.1226122244 | N55: =B55+$B$49 -> 0.4 | O55: =C55+M55 -> 1.181322336 | P55: =SQRT(N55)*O55 -> 0.7471338468 | Q55: =P55*$B$49 -> 0.1494267694
A56: 2 | B56: =B55+$B$7 -> 0.4 | C56: =C55+(1/6)*(E55+2*I55+2*M55+Q55) -> 1.180655127 | D56: =SQRT(B56)*C56 -> 0.7467118666 | E56: =$B$49*D56 -> 0.1493423733 | F56: =B56+$B$49/2 -> 0.5 | G56: =C56+E56/2 -> 1.255326314 | H56: =SQRT(F56)*G56 -> 0.8876497491 | I56: =$B$49*H56 -> 0.1775299498 | J56: =B56+$B$49/2 -> 0.5 | K56: =C56+I56/2 -> 1.269420102 | L56: =SQRT(J56)*K56 -> 0.8976155624 | M56: =$B$49*L56 -> 0.1795231125 | N56: =B56+$B$49 -> 0.6 | O56: =C56+M56 -> 1.36017824 | P56: =SQRT(N56)*O56 -> 1.053589534 | Q56: =P56*$B$49 -> 0.2107179068
A57: 3 | B57: 0.6 | C57: 1.359682861 | D57: 1.053205816 | E57: 0.2106411631 | F57: 0.7 | G57: 1.465003443 | H57: 1.225709819 | I57: 0.2451419639 | J57: 0.7 | K57: 1.482253843 | L57: 1.24014254 | M57: 0.248028508 | N57: 0.8 | O57: 1.607711369 | P57: 1.437980764 | Q57: 0.2875961528
A58: 4 | B58: 0.8 | C58: 1.607112571 | D58: 1.437445183 | E58: 0.2874890365 | F58: 0.9 | G58: 1.75085709 | H58: 1.661008878 | I58: 0.3322017756 | J58: 0.9 | K58: 1.773213459 | L58: 1.682217993 | M58: 0.3364435985 | N58: 1 | O58: 1.94355617 | P58: 1.94355617 | Q58: 0.388711234
A59: 5 | B59: 1 | C59: 1.942694408 | D59: 1.942694408 | E59: 0.3885388815 | F59: 1.1 | G59: 2.136963849 | H59: 2.241266593 | I59: 0.4482533185 | J59: 1.1 | K59: 2.166821067 | L59: 2.272581107 | M59: 0.4545162215 | N59: 1.2 | O59: 2.397210629 | P59: 2.626012673 | Q59: 0.5252025347
A60: 6 | B60: 1.2 | C60: 2.395907824 | D60: 2.624585522 | E60: 0.5249171043 | F60: 1.3 | G60: 2.658366376 | H60: 3.031004013 | I60: 0.6062008025 | J60: 1.3 | K60: 2.699008225 | L60: 3.07734285 | M60: 0.6154685701 | N60: 1.4 | O60: 3.011376394 | P60: 3.563108601 | Q60: 0.7126217201
A61: 7 | B61: 1.4 | C61: 3.009387419 | D61: 3.560755213 | E61: 0.7121510427 | F61: 1.5 | G61: 3.36546294 | H61: 4.121833476 | I61: 0.8243666951 | J61: 1.5 | K61: 3.421570766 | L61: 4.190551248 | M61: 0.8381102496 | N61: 1.6 | O61: 3.847497668 | P61: 4.86674237 | Q61: 0.9733484739
A62: 8 | B62: 1.6 | C62: 3.844462986 | D62: 4.862903767 | E62: 0.9725807534 | F62: 1.7 | G62: 4.330753363 | H62: 5.646611548 | I62: 1.12932231 | J62: 1.7 | K62: 4.409124141 | L62: 5.748794541 | M62: 1.149758908 | N62: 1.8 | O62: 4.994221895 | P62: 6.700451791 | Q62: 1.340090358
A63: 9 | B63: 1.8 | C63: 4.989601911 | D63: 6.694253432 | E63: 1.338850686 | F63: 1.9 | G63: 5.659027254 | H63: 7.800430756 | I63: 1.560086151 | J63: 1.9 | K63: 5.769644987 | L63: 7.952906778 | M63: 1.590581356 | N63: 2 | O63: 6.580183267 | P63: 9.305784418 | Q63: 1.861156884
A64: 10 | B64: 2 | C64: 6.573159008 | D64: 9.295850617 | E64: 1.859170123 | F64: 2.1 | G64: 7.50274407 | H64: 10.87250909 | I64: 2.174501819 | J64: 2.1 | K64: 7.660409918 | L64: 11.10098861 | M64: 2.220197723 | N64: 2.2 | O64: 8.793356731 | P64: 13.04265578 | Q64: 2.608531155
A65: 11 | B65: 2.2 | C65: 8.782675735 | D65: 13.0268133 | E65: 2.60536266 | F65: 2.3 | G65: 10.08535707 | H65: 15.29520129 | I65: 3.059040257 | J65: 2.3 | K65: 10.31219586 | L65: 15.63921936 | M65: 3.127843872 | N65: 2.4 | O65: 11.91051961 | P65: 18.45169763 | Q65: 3.690339527
A66: 12 | B66: 2.4 | C66: 11.89425414 | D66: 18.42649928 | E66: 3.685299857 | F66: 2.5 | G66: 13.73690407 | H66: 21.71995243 | I66: 4.343990486 | J66: 2.5 | K66: 14.06624939 | L66: 22.2406931 | M66: 4.44813862 | N66: 2.6 | O66: 16.34239276 | P66: 26.35131653 | Q66: 5.270263307
A67: 13 | B67: 2.6 | C67: 16.31755771 | D67: 26.31127121 | E67: 5.262254242 | F67: 2.7 | G67: 18.94868483 | H67: 31.13586634 | I67: 6.227173269 | J67: 2.7 | K67: 19.43114434 | L67: 31.92862822 | M67: 6.385725644 | N67: 2.8 | O67: 22.70328335 | P67: 37.9898593 | Q67: 7.59797186
A68: 14 | B68: 2.8 | C68: 22.66522836 | D68: 37.92618112 | E68: 7.585236224 | F68: 2.9 | G68: 26.45784647 | H68: 45.056089 | I68: 9.0112178 | J68: 2.9 | K68: 27.17083726 | L68: 46.27026856 | M68: 9.254053712 | N68: 3 | O68: 31.91928207 | P68: 55.28581829 | Q68: 11.05716366
A69: 15 | B69: 3 | C69: 31.86071884 | D69: 55.1843838 | E69: 11.03687676 | F69: 3.1 | G69: 37.37915722 | H69: 65.81279757 | I69: 13.16255951 | J69: 3.1 | K69: 38.4419986 | L69: 67.68412292 | M69: 13.53682458 | N69: 3.2 | O69: 45.39754343 | P69: 81.20959449 | Q69: 16.2419189
A70: 16 | B70: 3.2 | C70: 45.30697949 | D70: 81.04758879 | E70: 16.20951776 | F70: 3.3 | G70: 53.41173837 | H70: 97.02724114 | I70: 19.40544823 | J70: 3.3 | K70: 55.0097036 | L70: 99.93008915 | M70: 19.98601783 | N70: 3.4 | O70: 65.29299732 | P70: 120.3943383 | Q70: 24.07886766
A71: 17 | B71: 3.4 | C71: 65.15219908 | D71: 120.1347192 | E71: 24.02694383 | F71: 3.5 | G71: 77.16567099 | H71: 144.3637514 | I71: 28.87275029 | J71: 3.5 | K71: 79.58857422 | L71: 148.8965883 | M71: 29.77931766 | N71: 3.6 | O71: 94.93151674 | P71: 180.1198888 | Q71: 36.02397776
A72: 18 | B72: 3.6 | C72: 94.71137532 | D72: 179.7021998 | E72: 35.94043996 | F72: 3.7 | G72: 112.6815953 | H72: 216.7473762 | I72: 43.34947525 | J72: 3.7 | K72: 116.3861129 | L72: 223.8731582 | M72: 44.77463164 | N72: 3.8 | O72: 139.486007 | P72: 271.9082848 | Q72: 54.38165695
A73: 19 | B73: 3.8 | C73: 139.1397604 | D73: 271.233326 | E73: 54.24666521 | F73: 3.9 | G73: 166.263093 | H73: 328.3433003 | I73: 65.66866005 | J73: 3.9 | K73: 171.9740905 | L73: 339.6216165 | M73: 67.9243233 | N73: 4 | O73: 207.0640837 | P73: 414.1281675 | Q73: 82.8256335
A74: 20 | B74: 4 | C74: 206.516138 | D74: 413.032276 | E74: 82.6064552 | F74: 4.1 | G74: 247.8193656 | H74: 501.7959702 | I74: 100.359194 | J74: 4.1 | K74: 256.695735 | L74: 519.7692484 | M74: 103.9538497 | N74: 4.2 | O74: 310.4699877 | P74: 636.2741356 | Q74: 127.2548271
